[Event "Reykjavik Open 2024"]
[Site "Reykjavik"]
[Date "2024.03.19"]
[Round "7.28"]
[White "Ptacnikova, Lenka"]
[Black "Katz, Alexander"]
[Result "0-1"]
[ECO "D00"]
[WhiteElo "2067"]
[BlackElo "2418"]
[Annotator "TA"]
[PlyCount "114"]
[EventDate "2024.03.12"]
[EventCountry "ISL"]
[SourceTitle "playchess.com"]
[Source "ChessBase"]
[SourceQuality "1"]
[TimeControl "40/5400+30:1800+30"]

{[%evp 9,114,15,27,0,5,0,0,9,0,0,0,-18,-37,-50,-34,-80,-40,-37,0,0,0,0,0,-5,0,-39,-23,-36,-21,-30,-27,-34,0,0,0,-10,0,0,5,15,117,21,24,36,49,-76,-78,-102,-107,-115,-98,-108,-79,-85,-77,-79,37,41,32,-137,-136,-129,-114,-164,-117,-263,-278,-267,-284,-262,-276,-261,-273,-251,-181,-182,-189,-460,-454,-518,-491,-514,-520,-483,-508,-628,-627,-611,-366,-587,-579,-603,-602,-562,-559,-706,-694,-1584,-1224,-6143,-5558,-29984,-29985,-29986,-29978,-29978,-29979]} 1. d4 {[%emt 0:00:03]} Nf6 {[%emt 0:00:11]} 2. Nc3 {[%emt 0:00:10]} d5 {[%emt 0:00:51]} 3. Bf4 {[%emt 0:00:15]} g6 {[%emt 0:00:41]} 4. e3 {[%emt 0:00:46]} Nh5 {[%emt 0:01:02]} 5. Bg5 {[%emt 0:01:46]} c6 {[%emt 0:01:00]} 6. Be2 {[%emt 0:02:58]} h6 {[%emt 0:00:28]} 7. Bh4 {[%emt 0:00:48]} Ng7 {[%emt 0:00:21]} 8. f3 {[%emt 0:02:40] The position is equal.} Qb6 {[%emt 0:00:59]} 9. Na4 {[%emt 0:02:03]} Qa5+ {[%emt 0:00:14]} 10. c3 {[%emt 0:01:10] [#]} e5 $1 {[%emt 0:00:29]} 11. b4 {[%emt 0:05:31]} (11. e4 Nd7) 11... Qc7 {[%emt 0:00:36]} 12. Nc5 {[%emt 0:06:35]} (12. Qd2 $15 {is superior.}) 12... b6 {[%emt 0:04:53]} 13. Nd3 {[%emt 0:01:15]} e4 {[%emt 0:06:26]} 14. fxe4 {[%emt 0:10:53]} dxe4 {[%emt 0:01:10]} 15. Nf2 {[%emt 0:09:09]} f5 {[%emt 0:07:24]} 16. Bg3 {[%emt 0:04:00] Prevents g5} Bd6 {[%emt 0:01:08]} 17. Bxd6 {[%emt 0:00:55]} Qxd6 {[%emt 0:00:02]} 18. Bc4 {[%emt 0:03:48]} Na6 {[%emt 0:07:23][%cal Oa6b4]} 19. Bb3 {[%emt 0:10:38]} Nc7 {[%emt 0:02:27]} 20. Ne2 {[%emt 0:00:35]} a5 {[%emt 0:01:14]} 21. bxa5 {[%emt 0:04:38]} Rxa5 {[%emt 0:00:51]} 22. O-O {[%emt 0:00:12]} Be6 {[%emt 0:05:18]} 23. Nf4 {[%emt 0:01:05] And now Bxe6 would win.} Bxb3 {[%emt 0:00:52]} 24. Qxb3 {[%emt 0:08:25][%cal Oc3c4]} g5 {[%emt 0:01:00]} (24... Rb5 $11 25. Qc2 O-O) 25. Ne2 {[%emt 0:01:03]} (25. Qxb6 $2 Rb5 26. Qa7 gxf4 $19) (25. Nxe4 $1 $16 fxe4 26. Ng6 Qxg6 27. Qxb6) 25... Nd5 {[%emt 0:08:31]} 26. a4 {[%emt 0:01:24]} (26. c4 Ra3 27. Qb2 Qb4 (27... Nxe3 $2 28. c5 $18) 28. Qxb4 Nxb4 $17) 26... Nxe3 {[%emt 0:03:47]} 27. Rfb1 {[%emt 0:08:38]} (27. Nxe4 Qe6 $15) (27. Qxb6 $14 Qd5 28. c4 Nxc4 (28... Qxc4 $2 29. Qxa5 O-O 30. Rac1 $18) 29. Qb4) 27... Qd5 $1 $17 {[%emt 0:06:34] Black is much more active.} 28. Qxb6 {[%emt 0:02:15]} O-O {[%emt 0:00:23]} 29. Qc7 {[%emt 0:02:05]} Ne6 {[%emt 0:01:56]} 30. Qe7 {[%emt 0:00:24] [#]} Rf7 $1 $36 {[%emt 0:03:40][%mdl 2048] Black has strong initiative.} 31. Qe8+ {[%emt 0:00:11]} Nf8 {[%emt 0:00:56] Hoping for ...Nc2.} 32. Rb6 {[%emt 0:01:35]} Nc4 {[%emt 0:11:34]} (32... Nxg2 $17 {...e3 is the strong threat.} 33. Kxg2 e3+ 34. Ne4 Qxe4+ (34... fxe4 35. Ng3 $15) 35. Qxe4 fxe4) 33. Rxc6 $14 {[%emt 0:02:27]} Nd6 {[%emt 0:00:38]} 34. Qd8 {[%emt 0:00:30]} (34. c4 $1 $14 {stays ahead.} Nxc4 35. Rxh6) 34... Rxa4 $17 {[%emt 0:02:54]} ({Much worse is} 34... Qxc6 $6 35. Qxa5 Nd7 36. h4 $11) 35. Rxa4 {[%emt 0:00:31]} Qxc6 {[%emt 0:00:04]} 36. Ra8 {[%emt 0:01:23]} (36. Ra1 $17 {was worth a try.}) 36... Nb7 {[%emt 0:03:39]} (36... Nc4 $19 {Strongly threatening ...e3.} 37. h4 e3) 37. Qc8 {[%emt 0:01:52] [#] Now White is beyond hope.} (37. Qe8 $17 Qxe8 38. Rxe8) 37... Qb5 $1 $19 {[%emt 0:00:50]} 38. Ng3 {[%emt 0:01:14]} e3 {[%emt 0:00:27]} 39. Qe6 {[%emt 0:04:41]} Qb1+ {[%emt 0:03:26]} (39... exf2+ 40. Kxf2 Qb2+ 41. Kf1 $19) 40. Nf1 {[%emt 0:00:00]} exf2+ {[%emt 0:00:08]} 41. Kxf2 {[%emt 0:26:46]} f4 {[%emt 0:32:11]} 42. Qxh6 {[%emt 0:00:51]} Qf5 {[%emt 0:03:34][%cal Ob7c5]} 43. Qc6 $2 {[%emt 0:00:00]} (43. Nd2 {keeps fighting.}) 43... g4 {[%emt 0:00:00]} 44. Qc8 {[%emt 0:00:00]} Qg6 {[%emt 0:00:00] Threatens to win with ...Nd6.} 45. h3 {[%emt 0:00:00]} g3+ {[%emt 0:00:00]} 46. Kg1 {[%emt 0:00:00]} Nd6 {[%emt 0:00:00]} 47. Qc6 {[%emt 0:00:00] [#]} Qc2 $1 {[%emt 0:00:00]} 48. Qf3 {[%emt 0:00:00][%cal Of1g3] Inhibits Qf2+.} Qe4 {[%emt 0:00:00]} 49. Qxe4 {[%emt 0:00:00]} Nxe4 {[%emt 0:00:00]} 50. c4 {[%emt 0:00:00]} Rd7 {[%emt 0:00:00]} 51. d5 {[%emt 0:00:00]} Rc7 {[%emt 0:00:00]} 52. c5 {[%emt 0:00:00]} Rxc5 {[%emt 0:00:00]} 53. Ra4 {[%emt 0:00:00]} Nc3 {[%emt 0:00:00]} 54. Ra1 {[%emt 0:00:00]} Rxd5 {[%emt 0:00:00] ( -> ...Ne6)} 55. Kh1 {[%emt 0:00:00]} Ne6 {[%emt 0:00:00] Black mates.} 56. Nh2 {[%emt 0:00:00]} gxh2 {[%emt 0:00:00]} 57. Kxh2 {[%emt 0:00:00]} Rd2 {[%emt 0:00:00] Weighted Error Value: White=0.68/Black=0.21 (precise) .  Mistake:       	White=7     	Black=3      Inaccurate:     	White=2     	Black=3      OK:         	White=13    	Black=20     Best:        	White=9     	Black=4      Strong:       	---       	Black=3} 0-1

[Event "Reykjavik Open 2024"]
[Site "Reykjavik"]
[Date "2024.03.19"]
[Round "7.29"]
[White "Halldorsson, Bragi"]
[Black "Garifullina, Leya"]
[Result "0-1"]
[ECO "D35"]
[WhiteElo "2056"]
[BlackElo "2413"]
[Annotator "TA"]
[PlyCount "58"]
[EventDate "2024.03.12"]
[EventCountry "ISL"]
[SourceTitle "playchess.com"]
[Source "ChessBase"]
[SourceQuality "1"]
[TimeControl "40/5400+30:1800+30"]

{[%evp 21,58,0,0,0,0,-3,-2,-14,-6,-22,-13,-106,-108,-112,-98,-109,-107,-114,-107,-87,-111,-136,-121,-216,-216,-323,-307,-497,-495,-776,-787,-756,-734,-719,-670,-29976,-29970,-5581,-510]} 1. d4 {[%emt 0:00:04]} Nf6 {[%emt 0:01:58]} 2. c4 {[%emt 0:00:09]} e6 {[%emt 0:00:04]} 3. Nf3 {[%emt 0:00:07]} d5 {[%emt 0:00:06]} 4. Nc3 {[%emt 0:00:32]} Bb4 {[%emt 0:00:07]} 5. cxd5 {[%emt 0:01:14]} exd5 {[%emt 0:00:07]} 6. Bg5 {[%emt 0:01:33]} h6 {[%emt 0:00:08]} 7. Bh4 {[%emt 0:00:08]} O-O {[%emt 0:00:39]} 8. e3 {[%emt 0:00:06]} Bf5 {[%emt 0:01:55]} 9. Bd3 {[%emt 0:00:32]} Bxd3 {[%emt 0:01:59]} 10. Qxd3 {[%emt 0:00:13]} c6 {[%emt 0:03:14]} 11. O-O {[%emt 0:00:48]} Nbd7 {[%emt 0:00:24]} 12. Ne5 {[%emt 0:06:50]} Qe8 {[%emt 0:02:53]} 13. Nxd7 {[%emt 0:02:25]} Nxd7 {[%emt 0:00:07]} 14. f3 {[%emt 0:00:14] Die Stellung ist ausgeglichen.} f5 {[%emt 0:12:19]} 15. a3 {[%emt 0:01:39]} Bd6 {[%emt 0:03:44]} 16. e4 {[%emt 0:00:28]} (16. Ne2 $11) 16... Qh5 $17 {[%emt 0:04:49] [#] Droht ...fxe4 und aus.} 17. Bg3 {[%emt 0:00:33]} Bxg3 {[%emt 0:01:12]} 18. hxg3 {[%emt 0:00:15]} fxe4 {[%emt 0:00:40]} 19. fxe4 {[%emt 0:00:12]} Nf6 {[%emt 0:05:26] Und ...Ng4 würde nun gewinnen.} 20. Rf5 {[%emt 0:07:40]} dxe4 {[%emt 0:01:30]} 21. Qc4+ {[%emt 0:03:37]} Qf7 {[%emt 0:00:06]} 22. Qc5 {[%emt 0:01:48]} (22. Qxf7+ $17 Rxf7 23. d5) 22... Qg6 $19 {[%emt 0:02:02]} 23. Ne2 {[%emt 0:00:38]} (23. Raf1 $142 Qxg3 24. Qc4+ Kh7 25. Nxe4 Qe3+ 26. Nf2) 23... Nd5 {[%emt 0:00:43]} 24. Rxf8+ {[%emt 0:01:35] [#]} (24. Rff1) 24... Rxf8 {[%emt 0:00:16]} 25. Rf1 {[%emt 0:00:12] Pariert e3. Weiss ist schwach auf den weissen Feldern} (25. Qc2 $142 Rf2 26. Nf4 Rxc2 27. Nxg6) 25... Rxf1+ {[%emt 0:00:42]} 26. Kxf1 {[%emt 0:00:15]} e3 {[%emt 0:02:47]} 27. Kg1 {[%emt 0:03:23]} Qd3 {[%emt 0:00:17]} 28. Nf4 {[%emt 0:02:54]} Nxf4 {[%emt 0:00:04]} 29. gxf4 {[%emt 0:00:24]} Qb1+ {[%emt 0:00:09] Schwarz nahm nach der Eröffnung die Zügel in die Hand.   Gewichteter Fehlerwert: Weiß=0.80/Schwarz=0.00 (makellos) .  Fehler:       	Weiß=5     	---        OK:         	Weiß=1     	Schwarz=7     Bester:       	Weiß=2     	Schwarz=5} (29... Qd1+ $142 30. Kh2 e2 31. Qc4+ Kh7) 0-1

[Event "Reykjavik Open 2024"]
[Site "Reykjavik"]
[Date "2024.03.19"]
[Round "7.30"]
[White "Jin, Yueheng"]
[Black "Harish, Neeraj"]
[Result "1/2-1/2"]
[ECO "D72"]
[WhiteElo "2404"]
[BlackElo "2090"]
[Annotator "TA"]
[PlyCount "89"]
[EventDate "2024.03.12"]
[EventCountry "ISL"]
[SourceTitle "playchess.com"]
[Source "ChessBase"]
[SourceQuality "1"]
[TimeControl "40/5400+30:1800+30"]

{[%evp 19,89,0,12,0,0,0,35,-31,-8,-27,-38,-87,-80,-82,-21,-16,-22,-10,-15,-12,-26,-33,-33,-51,0,-10,4,6,27,0,0,0,0,0,0,-6,0,5,7,2,26,25,27,0,0,0,99,112,104,106,165,0,0,0,0,-8,-8,-8,0,-8,-8,-17,0,0,0,-17,0,0,0,0,0,-8]} 1. d4 {[%emt 0:00:03]} Nf6 {[%emt 0:00:16]} 2. c4 {[%emt 0:00:03]} g6 {[%emt 0:00:14]} 3. g3 {[%emt 0:00:04]} Bg7 {[%emt 0:00:16]} 4. Bg2 {[%emt 0:00:04]} d5 {[%emt 0:00:18]} 5. cxd5 {[%emt 0:00:04]} Nxd5 {[%emt 0:00:05]} 6. e4 {[%emt 0:00:05]} Nb6 {[%emt 0:00:09]} 7. Ne2 {[%emt 0:00:04]} c5 {[%emt 0:01:08]} 8. d5 {[%emt 0:00:05]} O-O {[%emt 0:01:28]} 9. O-O {[%emt 0:00:07]} e6 {[%emt 0:00:12]} 10. Nec3 {[%emt 0:00:05]} Na6 {[%emt 0:00:26]} 11. Bf4 {[%emt 0:00:16]} exd5 {[%emt 0:04:35]} 12. exd5 {[%emt 0:00:02]} h5 {[%emt 0:01:55]} 13. h4 {[%emt 0:31:13]} (13. Na3 $14) 13... Bg4 $15 {[%emt 0:02:58]} 14. Qc1 {[%emt 0:00:12]} Nb4 {[%emt 0:03:10][%cal Ob4d3]} 15. Bg5 {[%emt 0:01:54]} (15. Na3 $15 {should be considered.}) 15... Qd7 $17 {[%emt 0:00:53][%cal Og4f5]} 16. Nd2 {[%emt 0:04:05]} N6xd5 {[%emt 0:12:26]} (16... N4xd5 $6 17. Nxd5 Nxd5 18. Qxc5 $11) ({Black should play} 16... Rac8 $1 $17 {[%cal Rb6d5]} 17. d6 Nd3 (17... Qxd6 18. Nde4 $15)) 17. Nxd5 $11 {[%emt 0:00:49]} Nxd5 {[%emt 0:00:12]} 18. Qxc5 {[%emt 0:00:12]} Nc7 {[%emt 0:01:49][%cal Oc7e6]} 19. Ne4 {[%emt 0:19:45]} Ne6 $1 {[%emt 0:02:16]} (19... Bxb2 $6 20. Nf6+ Bxf6 21. Bxf6 $16) 20. Qb4 {[%emt 0:00:11]} Nxg5 {[%emt 0:00:48]} 21. hxg5 {[%emt 0:00:02]} Qf5 {[%emt 0:18:44]} (21... a5 $15 22. Qa3 Rfe8) 22. Qxb7 {[%emt 0:03:54]} Rab8 {[%emt 0:01:26]} 23. Qxa7 {[%emt 0:01:48]} Rxb2 {[%emt 0:01:45][%cal Oh5h4]} 24. a4 {[%emt 0:07:15]} h4 {[%emt 0:01:16]} 25. gxh4 {[%emt 0:02:40]} Bh3 {[%emt 0:03:19] This pair of bishops is nice.} 26. Ng3 {[%emt 0:02:30]} Qg4 {[%emt 0:05:11]} 27. Ra3 {[%emt 0:03:41]} Bxg2 {[%emt 0:02:37]} 28. Kxg2 {[%emt 0:00:02]} Qxh4 {[%emt 0:02:03]} 29. Qe3 {[%emt 0:00:23]} Rb4 {[%emt 0:18:18]} 30. a5 {[%emt 0:00:46][%cal Ba4a5,Ba5a6][%mdl 32] a6 would now be deadly.} Ra4 {[%emt 0:00:17]} 31. a6 {[%emt 0:16:07] Black must now prevent Rd1.} Ra8 {[%emt 0:02:52]} 32. Rb1 {[%emt 0:02:25] [#] Threatens to win with a7.} Bf8 {[%emt 0:03:55]} (32... Rxa3 $1 $11 {keeps the balance.} 33. Qxa3 Qc4) 33. Rxa4 {[%emt 0:00:56]} Qxa4 {[%emt 0:00:06]} 34. Ne4 {[%emt 0:00:33] Threatening mate with Nf6+. White is more active.} Bg7 {[%emt 0:04:39] [#]} (34... Rxa6 $16 35. Nf6+ Rxf6 36. gxf6 Qg4+ 37. Kf1 Qc4+ 38. Kg1 Qg4+ 39. Qg3 Qf5) 35. Qf3 $2 {[%emt 0:02:06]} (35. Rb6 $1 $18 {And now Qf4 would win.} Re8 36. a7 Rxe4 (36... Bd4 $2 37. Nf6+ Bxf6 38. Qxe8+ Qxe8 39. Rb8 $18) 37. Rb8+ Bf8 38. a8=Q (38. a8=R Qxa8 39. Rxa8 Rxe3 $18) 38... Qxa8 39. Rxa8 Rxe3 40. fxe3) 35... Qxa6 {[%emt 0:01:39] The position is equal.} 36. Rb7 {[%emt 0:00:33]} Rf8 {[%emt 0:00:14]} (36... Qxb7 $2 {perishes.} 37. Nf6+ Bxf6 38. Qxb7 Bxg5 39. Qxa8+ $18) 37. Nf6+ {[%emt 0:00:31]} Bxf6 {[%emt 0:00:10]} 38. gxf6 {[%emt 0:00:04][%mdl 4096] Endgame. KQR-KQR} Qa5 {[%emt 0:00:48]} 39. Rb3 {[%emt 0:01:40]} Qg5+ {[%emt 0:00:28]} 40. Kh2 {[%emt 0:00:06]} Qe5+ {[%emt 0:00:57]} (40... Re8 {looks sharper.} 41. Rb4 Re6 42. Rb8+ Kh7) 41. Kg2 {[%emt 0:30:09]} Qg5+ {[%emt 0:31:46]} 42. Kh2 {[%emt 0:00:07]} Rd8 {[%emt 0:00:00]} 43. Qc6 {[%emt 0:00:00]} Qh4+ {[%emt 0:00:00]} 44. Kg2 {[%emt 0:00:00]} Qg5+ {[%emt 0:00:00]} 45. Kh2 {[%emt 0:00:00] Weighted Error Value: White=0.16 (very precise) /Black=0.14 (very precise) .  Missed win:     	White=1     	---        Mistake:       	White=2     	Black=4      Inaccurate:     	White=2     	Black=1      OK:         	White=10    	Black=6      Best:        	White=3     	Black=4      Strong:       	---       	Black=1} 1/2-1/2

[Event "Reykjavik Open 2024"]
[Site "Reykjavik"]
[Date "2024.03.19"]
[Round "7.31"]
[White "Tania, Sachdev"]
[Black "Fossheim, Yngve"]
[Result "1/2-1/2"]
[ECO "E70"]
[WhiteElo "2393"]
[BlackElo "2090"]
[Annotator "TA"]
[PlyCount "110"]
[EventDate "2024.03.12"]
[EventCountry "ISL"]
[SourceTitle "playchess.com"]
[Source "ChessBase"]
[SourceQuality "1"]
[TimeControl "40/5400+30:1800+30"]

{[%evp 15,110,55,51,0,7,-23,87,75,81,78,83,85,110,109,122,120,135,121,190,190,211,182,309,329,317,309,339,271,277,225,233,208,199,133,117,62,275,220,247,221,276,160,175,185,172,124,112,70,92,61,90,14,15,17,8,8,8,8,8,8,16,8,64,20,20,0,0,-8,-8,-8,-8,-8,0,0,-8,-8,-8,-28,-21,-26,-20,-22,-20,-20,-20,-20,-20,-20,-20,-20,-20,-22,-12,-30,-20,-29,-20]} 1. d4 {[%emt 0:00:51]} Nf6 {[%emt 0:00:09]} 2. c4 {[%emt 0:00:03]} g6 {[%emt 0:00:06]} 3. Nc3 {[%emt 0:00:50]} Bg7 {[%emt 0:00:07]} 4. e4 {[%emt 0:00:24]} d6 {[%emt 0:00:05]} 5. Bd3 {[%emt 0:00:55]} e5 {[%emt 0:10:18]} 6. d5 {[%emt 0:01:25]} a5 {[%emt 0:02:52]} 7. Nge2 {[%emt 0:00:45]} O-O {[%emt 0:02:00]} 8. O-O {[%emt 0:01:46]} Na6 {[%emt 0:01:42]} 9. h3 {[%emt 0:03:23]} Nh5 {[%emt 0:05:44]} 10. g4 {[%emt 0:10:43] [#]} Nf4 {[%emt 0:06:05]} 11. Nxf4 $16 {[%emt 0:00:07] White is better.} exf4 {[%emt 0:00:04]} 12. Bxf4 {[%emt 0:00:06]} f5 {[%emt 0:01:28]} 13. exf5 {[%emt 0:01:16]} gxf5 {[%emt 0:00:38]} 14. g5 {[%emt 0:01:23] White is more active.} Nc5 {[%emt 0:06:02]} 15. h4 {[%emt 0:22:22]} Ne4 {[%emt 0:04:26]} 16. Rc1 {[%emt 0:02:12]} Nxc3 {[%emt 0:05:39]} (16... Bd7 $16 17. Re1 Rf7) 17. bxc3 $18 {[%emt 0:00:05]} Bd7 {[%emt 0:06:33]} 18. Qf3 {[%emt 0:02:55]} Qe8 {[%emt 0:07:37] [#]} (18... b6 {keeps fighting.} 19. Rfe1 Kh8) 19. c5 $1 {[%emt 0:02:46][%mdl 512]} dxc5 {[%emt 0:01:30]} 20. Bxc7 {[%emt 0:00:16]} Qg6 {[%emt 0:12:35]} 21. Bf4 {[%emt 0:03:06]} b5 {[%emt 0:02:12]} 22. Rfe1 {[%emt 0:03:06]} Rfe8 {[%emt 0:03:02] Dodges Re7} 23. h5 {[%emt 0:04:13]} Qf7 {[%emt 0:00:31]} 24. Bd6 {[%emt 0:02:36]} (24. c4 $18 b4 25. g6 hxg6 26. Kh1) 24... c4 $16 {[%emt 0:01:16]} 25. Bf1 {[%emt 0:00:05]} (25. Bc2 $16) 25... h6 $2 {[%emt 0:02:19]} (25... Rxe1 $1 $14 26. Rxe1 Re8 27. Rxe8+ Qxe8) 26. g6 $18 {[%emt 0:06:57]} Qf6 {[%emt 0:00:04]} 27. Qf4 {[%emt 0:00:17]} Rac8 {[%emt 0:08:21]} 28. Bc7 {[%emt 0:02:49]} ({White should try} 28. Bg2 $18) 28... Re4 $16 {[%emt 0:04:33]} 29. Rxe4 {[%emt 0:01:01]} fxe4 {[%emt 0:00:01] [#]} 30. Qxf6 {[%emt 0:06:00]} ({White should play} 30. Bg2 $1 $18) 30... Bxf6 {[%emt 0:00:01]} 31. d6 {[%emt 0:00:05]} Re8 {[%emt 0:03:33]} 32. Bxa5 {[%emt 0:02:09]} e3 {[%emt 0:00:39]} 33. Rc2 {[%emt 0:03:52]} (33. fxe3 $16 {Strongly threatening Bg2.} Re5 34. Bg2 Rxh5 35. Rf1) 33... Re5 $1 $11 {[%emt 0:00:45]} 34. fxe3 {[%emt 0:00:00] And now Bb6 would win.} Rxh5 {[%emt 0:01:00] [#]} 35. a4 $1 {[%emt 0:02:03]} bxa4 {[%emt 0:00:46]} 36. Bxc4+ {[%emt 0:00:02]} Kg7 {[%emt 0:00:05]} 37. Bb4 {[%emt 0:00:47]} Kxg6 {[%emt 0:02:18]} 38. Rg2+ {[%emt 0:01:38]} Kf5 {[%emt 0:00:59]} (38... Rg5 $11) 39. Bd3+ {[%emt 0:04:15]} Ke5 $1 {[%emt 0:00:58]} 40. c4 {[%emt 0:02:05] aiming for Be2.} Bg5 {[%emt 0:00:45]} 41. Kf2 {[%emt 0:38:33]} Rh3 {[%emt 0:01:19]} 42. Bc5 $132 {[%emt 0:00:00][%mdl 2048] White is not holding back} Bc6 {[%emt 0:01:40]} 43. Rg4 {[%emt 0:00:00] [#]} a3 $1 {[%emt 0:03:11]} 44. d7 $1 {[%emt 0:00:00]} ({Of course not} 44. Bxa3 Rf3+ 45. Ke2 Rxe3+ 46. Kd2 Rg3+ 47. Rxg5+ hxg5 $17) 44... Bxd7 {[%emt 0:10:17]} 45. Re4+ {[%emt 0:00:00]} Kf6 {[%emt 0:00:05] Hoping for ...a2.} 46. Kg2 {[%emt 0:00:00]} (46. Re7 {seems wilder.} a2 47. Rxd7 a1=Q 48. Bd4+) 46... a2 {[%emt 0:03:02]} 47. Bd4+ {[%emt 0:00:00]} Kf7 {[%emt 0:00:32][%cal Oh3e3]} 48. c5 {[%emt 0:00:00] [#]} Rxe3 $1 {[%emt 0:03:22]} 49. Bc4+ {[%emt 0:00:00]} Kg6 {[%emt 0:01:56]} 50. Rxe3 {[%emt 0:00:00]} Bxe3 {[%emt 0:00:06] KBB-KBB} 51. Bc3 {[%emt 0:00:00]} Bxc5 {[%emt 0:00:36]} 52. Bxa2 {[%emt 0:00:00]} Bf5 {[%emt 0:00:24]} 53. Bd5 {[%emt 0:00:00]} Bd6 {[%emt 0:00:52]} 54. Kh1 {[%emt 0:00:00]} Bf4 {[%emt 0:00:12]} 55. Ba8 {[%emt 0:00:00]} Kg5 {[%emt 0:00:45] White really could win this.   Weighted Error Value: White=0.22 (precise) /Black=0.21 (precise) .  Loses game:     	---       	Black=1      Mistake:       	White=5     	Black=4      Inaccurate:     	White=3     	Black=1      OK:         	White=20    	Black=15     Best:        	White=2     	Black=5      Strong:       	White=1     	Black=2} 1/2-1/2

[Event "Reykjavik Open 2024"]
[Site "Reykjavik"]
[Date "2024.03.19"]
[Round "7.32"]
[White "Krassel, Timofei"]
[Black "Lu, Maximillian"]
[Result "0-1"]
[ECO "B51"]
[WhiteElo "2035"]
[BlackElo "2375"]
[Annotator "RC"]
[PlyCount "122"]
[EventDate "2024.03.12"]
[EventCountry "ISL"]
[SourceTitle "playchess.com"]
[Source "ChessBase"]
[SourceQuality "1"]
[TimeControl "40/5400+30:1800+30"]

1. e4 {[%emt 0:00:03]} c5 {[%emt 0:05:29]} 2. Nf3 {[%emt 0:00:17]} d6 {[%emt 0:00:35]} 3. Bb5+ {[%emt 0:00:09]} Nd7 {[%emt 0:00:02]} 4. d4 {[%emt 0:00:12]} cxd4 {[%emt 0:02:55]} 5. Qxd4 {[%emt 0:00:04]} Ngf6 {[%emt 0:01:21]} 6. Nc3 {[%emt 0:00:39]} g6 {[%emt 0:03:25]} 7. Bg5 {[%emt 0:20:29]} Bg7 {[%emt 0:00:41]} 8. Qd2 {[%emt 0:06:27]} h6 {[%emt 0:05:47]} 9. Bxf6 {[%emt 0:00:50]} Bxf6 {[%emt 0:01:08]} 10. e5 {[%emt 0:28:10]} dxe5 {[%emt 0:30:51]} 11. O-O-O {[%emt 0:00:34]} a6 {[%emt 0:04:11]} 12. Bxd7+ {[%emt 0:00:04]} Bxd7 {[%emt 0:00:41]} 13. Qe3 {[%emt 0:01:13]} Qa5 {[%emt 0:07:56]} 14. Rd5 {[%emt 0:01:28]} b5 {[%emt 0:04:33]} 15. Nxe5 {[%emt 0:01:46]} Be6 {[%emt 0:00:55]} 16. Rc5 {[%emt 0:06:24]} O-O {[%emt 0:08:41]} 17. f4 {[%emt 0:09:45]} Rac8 {[%emt 0:02:57]} 18. a3 {[%emt 0:01:40]} Rxc5 {[%emt 0:01:01]} 19. Qxc5 {[%emt 0:00:03]} Rc8 {[%emt 0:00:12]} 20. Qd4 {[%emt 0:00:53]} Rd8 {[%emt 0:02:19]} 21. Qc5 {[%emt 0:00:08]} Rc8 {[%emt 0:00:01]} 22. Qd4 {[%emt 0:00:12]} Qc7 {[%emt 0:05:35]} 23. Rd1 {[%emt 0:01:13]} a5 {[%emt 0:00:03]} 24. Rd2 {[%emt 0:00:32]} b4 {[%emt 0:02:14]} 25. axb4 {[%emt 0:00:08]} axb4 {[%emt 0:00:00]} 26. Qxb4 {[%emt 0:02:41]} Qa7 {[%emt 0:00:36]} 27. b3 {[%emt 0:07:10]} Qe3 {[%emt 0:02:09]} 28. Nd1 {[%emt 0:01:15]} Qa7 {[%emt 0:02:07]} 29. Nc3 {[%emt 0:05:34]} Bxe5 {[%emt 0:01:59]} 30. fxe5 {[%emt 0:00:08]} Qe3 {[%emt 0:00:01]} 31. Nd1 {[%emt 0:01:17]} Qxe5 {[%emt 0:00:05]} 32. Kb1 {[%emt 0:00:49]} Bf5 {[%emt 0:02:58]} 33. g4 {[%emt 0:01:35]} Be4 {[%emt 0:00:30]} 34. Re2 {[%emt 0:01:54]} f5 {[%emt 0:00:22]} 35. gxf5 {[%emt 0:00:17]} gxf5 {[%emt 0:00:01]} 36. h4 {[%emt 0:01:27]} Qc7 {[%emt 0:03:06]} 37. Ne3 {[%emt 0:00:46]} Rb8 {[%emt 0:00:14]} 38. Qa4 {[%emt 0:00:37]} Qc3 {[%emt 0:00:38]} 39. Kc1 {[%emt 0:00:23]} Rc8 {[%emt 0:00:29]} 40. Qa6 {[%emt 0:00:39]} Rc6 {[%emt 0:00:53]} 41. Qa7 {[%emt 0:01:41]} Rc7 {[%emt 0:08:01]} 42. Qa6 {[%emt 0:01:17]} Rc6 {[%emt 0:09:24]} 43. Qa7 {[%emt 0:00:10]} Rg6 {[%emt 0:01:27]} 44. Nd1 {[%emt 0:03:35]} Qe5 {[%emt 0:00:50]} 45. h5 {[%emt 0:05:01]} Rg3 {[%emt 0:02:26]} 46. Qb6 {[%emt 0:02:06]} Kf7 {[%emt 0:01:05]} 47. c3 {[%emt 0:10:15]} Qf6 {[%emt 0:04:12]} 48. Qc5 {[%emt 0:01:47]} Qa6 {[%emt 0:05:00]} 49. Rxe4 {[%emt 0:06:58]} fxe4 {[%emt 0:00:01]} 50. Qf5+ {[%emt 0:00:20]} Qf6 {[%emt 0:00:05]} 51. Qxe4 {[%emt 0:00:14]} Qg5+ {[%emt 0:00:26]} 52. Kb1 {[%emt 0:00:28]} Rg1 {[%emt 0:02:55]} 53. Qh7+ {[%emt 0:00:40]} Kf6 {[%emt 0:00:12]} 54. Qh8+ {[%emt 0:00:30]} Ke6 {[%emt 0:00:16]} 55. Qc8+ {[%emt 0:00:36]} Kf7 {[%emt 0:00:25]} 56. Qc4+ {[%emt 0:00:05]} Kf8 {[%emt 0:00:59]} 57. Kc2 {[%emt 0:01:18]} Qg2+ {[%emt 0:00:30]} 58. Kc1 {[%emt 0:00:06]} Qg5+ {[%emt 0:00:03]} 59. Kc2 {[%emt 0:00:08]} Rg2+ {[%emt 0:00:33]} 60. Kb1 {[%emt 0:00:28]} Qf5+ {[%emt 0:00:03]} 61. Ka1 {[%emt 0:00:09]} Qa5+ {[%emt 0:00:05]} 0-1